fUSD/lending_fUSD_20250923
["ID","MTS","AMOUNT","RATE_DAILY","PERIOD"]
[387161981,1758599472313,-1208.87,0.00020531,2]
[387161982,1758599472323,-500.0,0.00020531,2]
[387161983,1758599472333,-488.41,0.00020531,2]
[387161984,1758599472343,-1285.27,0.00020531,2]
[387161985,1758599472353,-500.0,0.00020531,2]
[387161986,1758599472363,-1331.96,0.00020531,2]
[387161987,1758599472373,-400.0,0.00020531,2]
[387161988,1758599472383,-431.24000001,0.00020531,2]
[387161989,1758599472393,-298.49653487,0.00020531,2]
[387161990,1758599472403,-2079.04,0.00020531,2]
[387161991,1758599472412,-400.0,0.00020531,2]
[387161992,1758599472422,-1336.69,0.00020531,2]
[387161993,1758599472431,-400.0,0.00020531,2]
[387161994,1758599472440,-3097.42,0.00020531,2]
[387161995,1758599472449,-400.0,0.00020531,2]
[387161996,1758599472459,-400.0,0.00020532,2]
[387161997,1758599472468,-500.0,0.00020532,2]
[387161998,1758599472477,-516.01,0.00020532,2]
[387161999,1758599472486,-408.59,0.00020532,2]
[387162000,1758599472496,-500.0,0.00020532,2]
[387162001,1758599472506,-500.0,0.00020532,2]
[387162002,1758599472517,-1285.27,0.00020532,2]
[387162003,1758599472526,-547.18812654,0.00020532,2]
[387162004,1758599472536,-1425.0,0.00020534,2]
[387162005,1758599472545,-154.85292626,0.00020535,2]
[387162006,1758599472556,-500.0,0.00020545,2]
[387162007,1758599472566,-252.24473133,0.00020545,2]
[387162008,1758599472576,-400.0,0.00020546,2]
[387162009,1758599472585,-400.0,0.00020546,2]
[387162010,1758599472595,-546.45455513,0.00020546,2]
[387162011,1758599472604,-525.93919093,0.00020546,2]
[387162012,1758599472614,-537.33106654,0.00020546,2]
[387162013,1758599472623,-400.0,0.00020546,2]
[387162014,1758599472633,-400.0,0.00020546,2]
[387162015,1758599472643,-400.0,0.00020546,2]
[387162016,1758599472652,-400.0,0.00020546,2]
[387162017,1758599472662,-465.82424329,0.00020546,2]
[387162018,1758599472671,-239.88729735,0.00020546,2]
[387162019,1758599472681,-400.0,0.00020546,2]
[387162020,1758599472690,-400.0,0.00020546,2]
[387162021,1758599472699,-400.0,0.00020546,2]
[387162022,1758599472710,-1282.24,0.00020546,2]
[387162023,1758599472719,-556.35,0.00020546,2]
[387162024,1758599472728,-689.52,0.00020546,2]
[387162025,1758599472737,-610.52,0.00020546,2]
[387162026,1758599472747,-6754.1,0.00020546,2]
[387162027,1758599472756,-400.0,0.00020546,2]
[387162028,1758599472766,-660.13,0.00020546,2]
[387162029,1758599472775,-765.23,0.00020546,2]
[387162030,1758599472785,-678.41,0.00020546,2]
[387162031,1758599472794,-977.52,0.00020546,2]
[387162032,1758599472806,-1027.79,0.00020546,2]
[387162033,1758599472815,-565.29,0.00020546,2]
[387162034,1758599472824,-725.67,0.00020546,2]
[387162035,1758599472834,-853.75,0.00020546,2]
[387162036,1758599472843,-480.0,0.00020546,2]
[387162037,1758599472853,-479.48,0.00020546,2]
[387162038,1758599472863,-400.0,0.00020546,2]
[387162039,1758599472873,-727.04,0.00020546,2]
[387162040,1758599472882,-644.89,0.00020546,2]
[387162041,1758599472892,-400.0,0.00020546,2]
[387162042,1758599472901,-191.21552186,0.00020559,2]
[387162043,1758599472911,-500.0,0.00020573,2]
[387162044,1758599472920,-560.19759314,0.00020573,2]
[387162045,1758599472929,-500.4017898,0.00020573,2]
[387162046,1758599472938,-501.17812728,0.00020573,2]
[387162047,1758599472948,-500.0,0.00020573,2]
[387162048,1758599472958,-500.73883637,0.00020573,2]
[387162049,1758599472967,-166.16325306,0.00020573,2]
[387162050,1758599472976,-502.37826808,0.00020573,2]
[387162051,1758599472985,-500.0,0.00020573,2]
[387162052,1758599472995,-203.27063337,0.00020573,2]
[387162053,1758599473004,-196.5,0.00020578,2]
[387162054,1758599473013,-216.30867177,0.0002058,2]
[387162055,1758599473023,-309.97594126,0.00020587,2]
[387162056,1758599473032,-2000.0,0.00020587,3]
[387162057,1758599473041,-250.0,0.00020587,2]
[387162058,1758599473051,-344.15095493,0.00020587,2]
[387162059,1758599473061,-516.64379166,0.00020599,2]
[387162060,1758599473070,-196.5,0.00020608,2]
[387162061,1758599473080,-12301.60509355,0.00020614,2]
[387162062,1758599473089,-10589.88579283,0.00020614,2]
[387162063,1758599473098,-1007.45368887,0.00020634,2]
[387162064,1758599473108,-200.0,0.00020644,2]
[387162065,1758599473119,-200.0,0.00020645,2]
[387162066,1758599473128,-200.0,0.00020645,2]
[387162067,1758599473137,-150.0,0.00020649,2]
[387162068,1758599473146,-1425.0,0.00020687,2]
[387162069,1758599473156,-150.0,0.000207,2]
[387162070,1758599473166,-150.0,0.00020724,2]
[387162071,1758599473175,-411.74,0.00020724,2]
[387162072,1758599473185,-411.74,0.00020724,2]
[387162073,1758599473194,-1425.0,0.00020728,2]
[387162074,1758599473204,-196.5,0.00020759,2]
[387162075,1758599473214,-237.74659534,0.00020759,2]
[387162076,1758599473223,-306.35360326,0.00020794,2]
[387162077,1758599473232,-1447.40856089,0.00020799,2]
[387162078,1758599473242,-1523.3504346,0.000208,2]
[387162079,1758599473252,-267.25475,0.000208,2]
[387162080,1758599473262,-400.0,0.00020803,2]
[387162081,1758599473272,-388.42413661,0.00020803,2]
[387162082,1758599473281,-400.0,0.00020803,2]
[387162083,1758599473291,-1127.7,0.00020803,2]
[387162084,1758599473303,-400.0,0.00020803,2]
[387162085,1758599473312,-400.0,0.00020803,2]
[387162086,1758599473322,-886.69,0.00020803,2]
[387162087,1758599473331,-459.76,0.00020803,2]
[387162088,1758599473342,-400.0,0.00020803,2]
[387162089,1758599473351,-500.0,0.00020803,2]
[387162090,1758599473361,-1941.69,0.00020803,2]
[387162091,1758599473370,-400.0,0.00020803,2]
[387162092,1758599473380,-485.76,0.00020803,2]
[387162093,1758599473389,-400.0,0.00020803,2]
[387162094,1758599473399,-400.0,0.00020803,2]
[387162095,1758599473409,-583.75,0.00020803,2]
[387162096,1758599473418,-467.25,0.00020803,2]
[387162097,1758599473428,-394.34128981,0.00020803,2]
[387162098,1758599473438,-152.99467,0.00020803,2]
[387162099,1758599473447,-441.48,0.00020803,2]
[387162100,1758599473456,-400.0,0.00020803,2]
[387162101,1758599473465,-500.0,0.00020804,2]
[387162102,1758599473475,-150.0,0.00020804,2]
[387162103,1758599473484,-150.0,0.00020804,2]
[387162104,1758599473494,-450.0,0.00020804,2]
[387162105,1758599473503,-500.0,0.00020804,2]
[387162106,1758599473513,-500.0,0.00020804,2]
[387162107,1758599473522,-1574.0,0.00020804,2]
[387162108,1758599473531,-250.0,0.00020804,2]
[387162109,1758599473540,-500.0,0.00020804,2]
[387162110,1758599473552,-507.14485367,0.00020804,2]
[387162111,1758599473561,-500.0,0.00020804,2]
[387162112,1758599473571,-486.0,0.00020804,2]
[387162113,1758599473580,-500.0,0.00020804,2]
[387162114,1758599473589,-452.92,0.00020804,2]
[387162115,1758599473599,-400.0,0.00020804,2]
[387162116,1758599473609,-517.18988198,0.00020804,2]
[387162117,1758599473619,-400.0,0.00020804,2]
[387162118,1758599473629,-400.0,0.00020804,2]
[387162119,1758599473638,-400.0,0.00020804,2]
[387162120,1758599473648,-400.0,0.00020804,2]
[387162121,1758599473659,-400.0,0.00020804,2]
[387162122,1758599473669,-400.0,0.00020804,2]
[387162123,1758599473678,-400.0,0.00020804,2]
[387162124,1758599473688,-400.0,0.00020804,2]
[387162125,1758599473697,-591.69,0.00020804,2]
[387162126,1758599473706,-400.0,0.00020804,2]
[387162127,1758599473716,-400.0,0.00020804,2]
[387162128,1758599473725,-400.0,0.00020804,2]
[387162129,1758599473738,-451.15,0.00020804,2]
[387162130,1758599473749,-328.38394016,0.00020804,2]
[387162131,1758599473759,-400.0,0.00020804,2]
[387162132,1758599473768,-648.42,0.00020804,2]
[387162133,1758599473780,-529.25,0.00020804,2]
[387162134,1758599473790,-400.0,0.00020804,2]
[387162135,1758599473802,-400.18,0.00020804,2]
[387162136,1758599473811,-176.93186562,0.00020804,2]
[387162137,1758599473821,-502.92,0.00020804,2]
[387162138,1758599473832,-648.28,0.00020804,2]
[387162139,1758599473842,-400.0,0.00020804,2]
[387162140,1758599473853,-400.0,0.00020804,2]
[387162141,1758599473863,-407.85,0.00020804,2]
[387162142,1758599473873,-400.0,0.00020804,2]
[387162143,1758599473883,-506.63,0.00020804,2]
[387162144,1758599473892,-400.0,0.00020804,2]
[387162145,1758599473902,-400.0,0.00020804,2]
[387162146,1758599473912,-400.0,0.00020804,2]
[387162147,1758599473921,-572.48,0.00020804,2]
[387162148,1758599473931,-400.0,0.00020804,2]
[387162149,1758599473942,-158.38806372,0.00020804,2]
[387162150,1758599473952,-531.14,0.00020804,2]
[387162151,1758599473962,-400.0,0.00020804,2]
[387162152,1758599473971,-400.0,0.00020804,2]
[387162153,1758599473981,-400.0,0.00020804,2]
[387162154,1758599473990,-481.06,0.00020804,2]
[387162155,1758599474000,-400.0,0.00020804,2]
[387162156,1758599474010,-400.0,0.00020804,2]
[387162157,1758599474020,-400.0,0.00020804,2]
[387162158,1758599474029,-400.0,0.00020804,2]
[387162159,1758599474039,-400.0,0.00020804,2]
[387162160,1758599474049,-400.0,0.00020804,2]
[387162161,1758599474058,-495.86,0.00020804,2]
[387162162,1758599474068,-400.0,0.00020804,2]
[387162163,1758599474077,-538.36,0.00020804,2]
[387162164,1758599474088,-400.0,0.00020804,2]
[387162165,1758599474098,-400.0,0.00020804,2]
[387162166,1758599474109,-400.0,0.00020804,2]
[387162167,1758599474122,-400.0,0.00020804,2]
[387162168,1758599474133,-403.898064,0.00020804,2]
[387162169,1758599474143,-400.0,0.00020804,2]
[387162170,1758599474153,-625.8,0.00020804,2]
[387162171,1758599474162,-300.14059013,0.00020804,2]
[387162172,1758599474172,-488.53,0.00020804,2]
[387162173,1758599474181,-400.0,0.00020804,2]
[387162174,1758599474192,-772.75,0.00020804,2]
[387162175,1758599474201,-400.0,0.00020804,2]
[387162176,1758599474210,-400.0,0.00020804,2]
[387162177,1758599474219,-417.71,0.00020804,2]
[387162178,1758599474229,-400.0,0.00020804,2]
[387162179,1758599474239,-400.0,0.00020804,2]
[387162180,1758599474248,-400.0,0.00020804,2]
[387162181,1758599474257,-400.0,0.00020804,2]
[387162182,1758599474267,-400.0,0.00020804,2]
[387162183,1758599474276,-454.76297875,0.00020804,2]
[387162184,1758599474285,-400.0,0.00020804,2]
[387162185,1758599474295,-400.0,0.00020804,2]
[387162186,1758599474305,-472.84,0.00020804,2]
[387162187,1758599474315,-400.0,0.00020804,2]
[387162188,1758599474324,-518.82,0.00020804,2]
[387162189,1758599474335,-400.0,0.00020804,2]
[387162190,1758599474344,-412.77092134,0.00020804,2]
[387162191,1758599474354,-462.72,0.00020804,2]
[387162192,1758599474363,-400.0,0.00020804,2]
[387162193,1758599474373,-400.0,0.00020804,2]
[387162194,1758599474382,-400.0,0.00020804,2]
[387162195,1758599474391,-392.38485082,0.00020804,2]
[387162196,1758599474401,-670.29,0.00020804,2]
[387162197,1758599474412,-400.0,0.00020804,2]
[387162198,1758599474422,-461.32782471,0.00020804,2]
[387162199,1758599474432,-408.41032585,0.00020804,2]
[387162200,1758599474443,-400.0,0.00020804,2]
[387162201,1758599474453,-404.12377941,0.00020804,2]
[387162202,1758599474463,-492.40742719,0.00020804,2]
[387162203,1758599474473,-400.0,0.00020804,2]
[387162204,1758599474483,-400.0,0.00020804,2]
[387162205,1758599474495,-400.0,0.00020804,2]
[387162206,1758599474506,-459.36352769,0.00020804,2]
[387162207,1758599474518,-476.37,0.00020804,2]
[387162208,1758599474527,-400.0,0.00020804,2]
[387162209,1758599474538,-400.0,0.00020804,2]
[387162210,1758599474548,-744.89,0.00020804,2]
[387162211,1758599474557,-400.0,0.00020804,2]
[387162212,1758599474567,-400.0,0.00020804,2]
[387162213,1758599474576,-676.77,0.00020804,2]
[387162214,1758599474585,-400.0,0.00020804,2]
[387162215,1758599474660,-560.87,0.00020804,2]
[387162216,1758599474669,-400.0,0.00020804,2]
[387162217,1758599474679,-400.0,0.00020804,2]
[387162218,1758599474688,-1924.89,0.00020804,2]
[387162219,1758599474697,-400.0,0.00020804,2]
[387162220,1758599474705,-400.0,0.00020804,2]
[387162221,1758599474714,-400.0,0.00020804,2]
[387162222,1758599474724,-400.0,0.00020804,2]
[387162223,1758599474735,-788.66,0.00020804,2]
[387162224,1758599474746,-404.48975375,0.00020804,2]
[387162225,1758599474755,-400.0,0.00020804,2]
[387162226,1758599474765,-400.0,0.00020804,2]
[387162227,1758599474775,-782.22,0.00020804,2]
[387162228,1758599474784,-400.0,0.00020804,2]
[387162229,1758599474793,-407.39,0.00020804,2]
[387162230,1758599474803,-400.0,0.00020804,2]
[387162231,1758599474812,-400.0,0.00020804,2]
[387162232,1758599474821,-470.35899731,0.00020804,2]
[387162233,1758599474830,-400.0,0.00020804,2]
[387162234,1758599474840,-400.0,0.00020804,2]
[387162235,1758599474849,-665.54,0.00020804,2]
[387162236,1758599474857,-400.0,0.00020804,2]
[387162237,1758599474866,-400.0,0.00020804,2]
[387162238,1758599474875,-400.0,0.00020804,2]
[387162239,1758599474885,-400.0,0.00020804,2]
[387162240,1758599474895,-643.5,0.00020804,2]
[387162241,1758599474904,-400.0,0.00020804,2]
[387162242,1758599474912,-461.18991238,0.00020804,2]
[387162243,1758599474922,-578.36,0.00020804,2]
[387162244,1758599474931,-400.0,0.00020804,2]
[387162245,1758599474940,-708.62,0.00020804,2]
[387162246,1758599474949,-400.0,0.00020804,2]
[387162247,1758599474958,-166.29205857,0.00020804,2]
[387162248,1758599474967,-400.0,0.00020804,2]
[387162249,1758599474978,-313.89476647,0.00020804,2]
[387162250,1758599474987,-639.18,0.00020804,2]
[387162251,1758599474996,-540.94,0.00020804,2]
[387162252,1758599475005,-400.0,0.00020804,2]
[387162253,1758599475015,-400.0,0.00020804,2]
[387162254,1758599475023,-572.8,0.00020804,2]
[387162255,1758599475033,-510.44,0.00020804,2]
[387162256,1758599475042,-400.0,0.00020804,2]
[387162257,1758599475052,-400.0,0.00020804,2]
[387162258,1758599475062,-540.49,0.00020804,2]
[387162259,1758599475071,-400.0,0.00020804,2]
[387162260,1758599475081,-407.88798332,0.00020804,2]
[387162261,1758599475090,-400.0,0.00020804,2]
[387162262,1758599475099,-333.79674659,0.00020804,2]
[387162263,1758599475108,-400.0,0.00020804,2]
[387162264,1758599475119,-606.87,0.00020804,2]
[387162265,1758599475128,-1361.87,0.00020804,2]
[387162266,1758599475137,-248.92960072,0.00020804,2]
[387162267,1758599475146,-1031.45,0.00020804,2]
[387162268,1758599475155,-400.0,0.00020804,2]
[387162269,1758599475164,-400.0,0.00020804,2]
[387162270,1758599475173,-400.0,0.00020804,2]
[387162271,1758599475183,-400.0,0.00020804,2]
[387162272,1758599475193,-2551.63,0.00020804,2]
[387162273,1758599475202,-400.0,0.00020804,2]
[387162274,1758599475211,-465.41,0.00020804,2]
[387162275,1758599475220,-432.15,0.00020804,2]
[387162276,1758599475230,-399.65739758,0.00020804,2]
[387162277,1758599475239,-463.33,0.00020804,2]
[387162278,1758599475248,-1375.3,0.00020804,2]
[387162279,1758599475257,-400.0,0.00020804,2]
[387162280,1758599475266,-512.51,0.00020804,2]
[387162281,1758599475277,-758.25,0.00020804,2]
[387162282,1758599475286,-400.0,0.00020804,2]
[387162283,1758599475295,-466.97851894,0.00020804,2]
[387162284,1758599475305,-400.0,0.00020804,2]
[387162285,1758599475314,-400.0,0.00020804,2]
[387162286,1758599475324,-400.0,0.00020804,2]
[387162287,1758599475335,-400.0,0.00020804,2]
[387162288,1758599475344,-400.0,0.00020804,2]
[387162289,1758599475353,-400.0,0.00020804,2]
[387162290,1758599475363,-400.0,0.00020804,2]
[387162291,1758599475372,-519.19144388,0.00020804,2]
[387162292,1758599475381,-400.0,0.00020804,2]
[387162293,1758599475394,-1206.33,0.00020804,2]
[387162294,1758599475405,-278.3085134,0.00020804,2]
[387162295,1758599475414,-400.0,0.00020804,2]
[387162296,1758599475423,-400.0,0.00020804,2]
[387162297,1758599475435,-2150.93,0.00020804,2]
[387162298,1758599475453,-440.18,0.00020804,2]
[387162299,1758599475462,-572.11,0.00020804,2]
[387162300,1758599475472,-400.0,0.00020804,2]
[387162301,1758599475481,-400.0,0.00020804,2]
[387162302,1758599475490,-400.0,0.00020804,2]
[387162303,1758599475499,-400.0,0.00020804,2]
[387162304,1758599475509,-985.98,0.00020804,2]
[387162305,1758599475518,-401.95,0.00020804,2]
[387162306,1758599475527,-824.43,0.00020804,2]
[387162307,1758599475536,-400.0,0.00020804,2]
[387162308,1758599475546,-400.0,0.00020804,2]
[387162309,1758599475557,-400.0,0.00020804,2]
[387162310,1758599475566,-408.55,0.00020804,2]
[387162311,1758599475575,-400.0,0.00020804,2]
[387162312,1758599475584,-400.0,0.00020804,2]
[387162313,1758599475593,-594.13,0.00020804,2]
[387162314,1758599475603,-400.0,0.00020804,2]
[387162315,1758599475611,-400.0,0.00020804,2]
[387162316,1758599475621,-661.14,0.00020804,2]
[387162317,1758599475630,-955.85,0.00020804,2]
[387162318,1758599475640,-400.0,0.00020804,2]
[387162319,1758599475651,-496.76,0.00020804,2]
[387162320,1758599475661,-366.4241195,0.00020804,2]
[387162321,1758599475671,-984.83,0.00020804,2]
[387162322,1758599475680,-400.0,0.00020804,2]
[387162323,1758599475690,-400.0,0.00020804,2]
[387162324,1758599475699,-630.46,0.00020804,2]
[387162325,1758599475708,-841.77,0.00020804,2]
[387162326,1758599475718,-400.0,0.00020804,2]
[387162327,1758599475727,-400.0,0.00020804,2]
[387162328,1758599475737,-345.16101319,0.00020804,2]
[387162329,1758599475747,-657.03,0.00020804,2]
[387162330,1758599475759,-400.0,0.00020804,2]
[387162331,1758599475769,-400.0,0.00020804,2]
[387162332,1758599475779,-795.06,0.00020804,2]
[387162333,1758599475789,-656.19,0.00020804,2]
[387162334,1758599475799,-413.66,0.00020804,2]
[387162335,1758599475809,-400.0,0.00020804,2]
[387162336,1758599475819,-1766.09,0.00020804,2]
[387162337,1758599475831,-603.3,0.00020804,2]
[387162338,1758599475842,-400.0,0.00020804,2]
[387162339,1758599475852,-400.0,0.00020804,2]
[387162340,1758599475863,-403.07,0.00020804,2]
[387162341,1758599475873,-400.0,0.00020804,2]
[387162342,1758599475883,-175.65809984,0.00020804,2]
[387162343,1758599475893,-539.02,0.00020804,2]
[387162344,1758599475902,-478.59,0.00020804,2]
[387162345,1758599475912,-623.54,0.00020804,2]
[387162346,1758599475921,-727.02,0.00020804,2]
[387162347,1758599475932,-400.0,0.00020804,2]
[387162348,1758599475942,-400.0,0.00020804,2]
[387162349,1758599475950,-439.82467113,0.00020804,2]
[387162350,1758599475960,-425.68,0.00020804,2]
[387162351,1758599475969,-400.0,0.00020804,2]
[387162352,1758599475978,-408.24235532,0.00020804,2]
[387162353,1758599475988,-400.0,0.00020804,2]
[387162354,1758599475997,-905.96,0.00020804,2]
[387162355,1758599476008,-400.0,0.00020804,2]
[387162356,1758599476018,-900.82,0.00020804,2]
[387162357,1758599476028,-1292.05,0.00020804,2]
[387162358,1758599476038,-400.0,0.00020804,2]
[387162359,1758599476047,-410.74,0.00020804,2]
[387162360,1758599476057,-400.0,0.00020804,2]
[387162361,1758599476067,-400.0,0.00020804,2]
[387162362,1758599476076,-400.0,0.00020804,2]
[387162363,1758599476086,-400.0,0.00020804,2]
[387162364,1758599476096,-471.49,0.00020804,2]
[387162365,1758599476105,-281.98585989,0.00020804,2]
[387162366,1758599476115,-403.92405477,0.00020804,2]
[387162367,1758599476125,-400.0,0.00020804,2]
[387162368,1758599476134,-400.0,0.00020804,2]
[387162369,1758599476143,-400.0,0.00020804,2]
[387162370,1758599476152,-400.0,0.00020804,2]
[387162371,1758599476162,-500.0,0.00020804,2]
[387162372,1758599476172,-400.0,0.00020804,2]
[387162373,1758599476182,-811.28,0.00020804,2]
[387162374,1758599476193,-609.51,0.00020804,2]
[387162375,1758599476203,-402.75754321,0.00020804,2]
[387162376,1758599476214,-487.38,0.00020804,2]
[387162377,1758599476223,-400.0,0.00020804,2]
[387162378,1758599476232,-400.0,0.00020804,2]
[387162379,1758599476242,-400.0,0.00020804,2]
[387162380,1758599476252,-690.14,0.00020804,2]
[387162381,1758599476264,-400.0,0.00020804,2]
[387162382,1758599476273,-400.0,0.00020804,2]
[387162383,1758599476284,-400.0,0.00020804,2]
[387162384,1758599476294,-635.76,0.00020804,2]
[387162385,1758599476304,-400.0,0.00020804,2]
[387162386,1758599476315,-449.64,0.00020804,2]
[387162387,1758599476325,-400.0,0.00020804,2]
[387162388,1758599476336,-699.58,0.00020804,2]
[387162389,1758599476346,-400.0,0.00020804,2]
[387162390,1758599476357,-400.0,0.00020804,2]
[387162391,1758599476367,-400.0,0.00020804,2]
[387162392,1758599476377,-520.49,0.00020804,2]
[387162393,1758599476387,-400.0,0.00020804,2]
[387162394,1758599476398,-400.0,0.00020804,2]
[387162395,1758599476408,-400.0,0.00020804,2]
[387162396,1758599476419,-492.93,0.00020804,2]
[387162397,1758599476429,-577.39,0.00020804,2]
[387162398,1758599476440,-443.38325249,0.00020804,2]
[387162399,1758599476451,-583.63,0.00020804,2]
[387162400,1758599476462,-609.69,0.00020804,2]
[387162401,1758599476473,-400.0,0.00020804,2]
[387162402,1758599476483,-150.0,0.00020805,2]
[387162403,1758599476494,-500.0,0.00020805,2]
[387162404,1758599476505,-167.21384345,0.00020805,2]
[387162405,1758599476516,-150.0,0.00020805,2]
[387162406,1758599476528,-239.52975323,0.00020805,2]
[387162407,1758599476539,-400.0,0.00020805,2]
[387162408,1758599476550,-400.0,0.00020805,2]
[387162409,1758599476561,-400.0,0.00020805,2]
[387162410,1758599476571,-367.95808133,0.00020805,2]
[387162411,1758599476582,-400.0,0.00020805,2]
[387162412,1758599476593,-400.0,0.00020805,2]
[387162413,1758599476603,-400.0,0.00020805,2]
[387162414,1758599476614,-400.0,0.00020805,2]
[387162415,1758599476623,-400.0,0.00020805,2]
[387162416,1758599476634,-400.0,0.00020805,2]
[387162417,1758599476645,-400.0,0.00020805,2]
[387162418,1758599476655,-400.0,0.00020805,2]
[387162419,1758599476665,-400.0,0.00020805,2]
[387162420,1758599476676,-400.0,0.00020805,2]
[387162421,1758599476687,-400.0,0.00020805,2]
[387162422,1758599476697,-400.0,0.00020805,2]
[387162423,1758599476708,-400.0,0.00020805,2]
[387162424,1758599476718,-400.0,0.00020805,2]
[387162425,1758599476729,-400.0,0.00020805,2]
[387162426,1758599476740,-404.53348751,0.00020805,2]
[387162427,1758599476751,-400.0,0.00020805,2]
[387162428,1758599476761,-400.0,0.00020805,2]
[387162429,1758599476772,-400.0,0.00020805,2]
[387162430,1758599476783,-400.0,0.00020805,2]
[387162431,1758599476793,-400.0,0.00020805,2]
[387162432,1758599476804,-403.04228699,0.00020805,2]
[387162433,1758599476815,-400.0,0.00020805,2]
[387162434,1758599476826,-400.0,0.00020805,2]
[387162435,1758599476837,-400.0,0.00020805,2]
[387162436,1758599476847,-400.0,0.00020805,2]
[387162437,1758599476859,-404.11691026,0.00020805,2]
[387162438,1758599476870,-400.0,0.00020805,2]
[387162439,1758599476880,-407.31634743,0.00020805,2]
[387162440,1758599476890,-404.70106316,0.00020805,2]
[387162441,1758599476902,-406.77001686,0.00020805,2]
[387162442,1758599476921,-400.0,0.00020805,2]
[387162443,1758599476934,-464.98929629,0.00020805,2]
[387162444,1758599476951,-400.0,0.00020805,2]
[387162445,1758599476964,-478.98672365,0.00020805,2]
[387162446,1758599476978,-400.0,0.00020805,2]
[387162447,1758599476990,-400.0,0.00020805,2]
[387162448,1758599477003,-159.31109911,0.00020805,2]
[387162449,1758599477014,-400.0,0.00020805,2]
[387162450,1758599477026,-400.0,0.00020805,2]
[387162451,1758599477037,-400.0,0.00020805,2]
[387162452,1758599477047,-303.21507507,0.00020805,2]
[387162453,1758599477059,-400.0,0.00020805,2]
[387162454,1758599477070,-400.0,0.00020805,2]
[387162455,1758599477080,-400.0,0.00020805,2]
[387162456,1758599477090,-400.0,0.00020805,2]
[387162457,1758599477101,-400.0,0.00020805,2]
[387162458,1758599477112,-400.0,0.00020805,2]
[387162459,1758599477124,-400.0,0.00020805,2]
[387162460,1758599477135,-400.0,0.00020805,2]
[387162461,1758599477146,-409.16,0.00020805,2]
[387162462,1758599477158,-400.0,0.00020805,2]
[387162463,1758599477169,-400.0,0.00020805,2]
[387162464,1758599477179,-400.0,0.00020805,2]
[387162465,1758599477190,-447.5336125,0.00020805,2]
[387162466,1758599477201,-400.0,0.00020805,2]
[387162467,1758599477212,-400.0,0.00020805,2]
[387162468,1758599477223,-400.0,0.00020805,2]
[387162469,1758599477234,-500.0,0.00020805,2]
[387162470,1758599477244,-400.0,0.00020805,2]
[387162471,1758599477255,-400.0,0.00020805,2]
[387162472,1758599477267,-400.0,0.00020805,2]
[387162473,1758599477278,-409.92215802,0.00020805,2]
[387162474,1758599477289,-406.62092981,0.00020805,2]
[387162475,1758599477302,-400.0,0.00020805,2]
[387162476,1758599477313,-202.90479509,0.00020805,2]
[387162477,1758599477324,-400.0,0.00020805,2]
[387162478,1758599477335,-400.0,0.00020805,2]
[387162479,1758599477347,-400.0,0.00020805,2]
[387162480,1758599477358,-406.13503938,0.00020805,2]